{"text_format":"3","workbook":"xlsx","n_sheets":12,"sheets":["1. Check-list","2. University","3. Participant 1","4. Participant 2","5. Participant 3","6. Question 1","7. Question 2","8. Question 3","9. Statistics","10. Universality Fund","Ctrl","Liste"],"read":"whole","date_system":"1900"}

{"sheet":"1. Check-list","index":0,"n_rows":19,"n_cols":3,"rows_kept":19,"merged":[[4,0,4,7],[5,0,5,7],[6,0,6,7],[7,0,7,7]]}
["2021 Jean-Pictet Competition - application form"]
["Please complete the fields in the nine other tabs of this document. This will automatically update the check-list below. "]
["This Excel document must be sent back, once completed, to christophe@concourspictet.org, together with five documents:"]
["- three CVS, i.e. a CV without an ID picture for each member;"]
["- a signed and scanned certificate from the University, to be written on the basis of the template available on"]
["https://www.concourspictet.org/docs/certif_uni_en_template.dotx"]
["- a certificate signed by the three applicants and scanned, to be written on the basis of the template available on"]
["https://www.concourspictet.org/docs/certif_partic_en_template.dotx"]
[]
["Information on the University (tab 2)",{"$f":"IF(OR('2. University'!B3=\"\",'2. University'!B4=\"\",'2. University'!B5=\"\",'2. University'!B7=\"\",'2. University'!B8=\"\",'2. University'!B9=\"\",'2. University'!B10=\"\",'2. University'!B12=\"\",'2. University'!B13=\"\",'2. University'!B14=\"\"),\"Information is missing\",\"OK\")","v":"Information is missing"},{"$f":"Ctrl!H5","v":""}]
["Choice of edition (tab 2)",{"$f":"Ctrl!E11&Ctrl!E12&Ctrl!E13&Ctrl!E14&Ctrl!E15&Ctrl!E16&Ctrl!E17&Ctrl!E18&Ctrl!E19&Ctrl!E20&Ctrl!E21&Ctrl!E22&Ctrl!E23&Ctrl!E24&Ctrl!E25&Ctrl!E26&Ctrl!E27","v":"35th edition (Albania) or 36th edition (Indonesia), no preference"}]
["Information on Participant 1 (tab 3)",{"$f":"IF(OR('3. Participant 1'!B2=\"\",'3. Participant 1'!B4=\"\",'3. Participant 1'!B5=\"\",'3. Participant 1'!B6=\"\",'3. Participant 1'!C6=\"\",'3. Participant 1'!D6=\"\",'3. Participant 1'!B7=\"\",'3. Participant 1'!B9=\"\",'3. Participant 1'!B10=\"\"),\"Information is missing\",\"OK\")","v":"Information is missing"},{"$f":"Ctrl!E2&Ctrl!H2","v":""}]
["Information on Participant 2 (tab 4)",{"$f":"IF(OR('4. Participant 2'!B2=\"\",'4. Participant 2'!B4=\"\",'4. Participant 2'!B5=\"\",'4. Participant 2'!B6=\"\",'4. Participant 2'!C6=\"\",'4. Participant 2'!D6=\"\",'4. Participant 2'!B7=\"\",'4. Participant 2'!B9=\"\",'4. Participant 2'!B10=\"\"),\"Information is missing\",\"OK\")","v":"Information is missing"},{"$f":"Ctrl!E3&Ctrl!H3","v":""}]
["Information on Participant 3 (tab 5)",{"$f":"IF(OR('5. Participant 3'!B2=\"\",'5. Participant 3'!B4=\"\",'5. Participant 3'!B5=\"\",'5. Participant 3'!B6=\"\",'5. Participant 3'!C6=\"\",'5. Participant 3'!D6=\"\",'5. Participant 3'!B7=\"\",'5. Participant 3'!B9=\"\",'5. Participant 3'!B10=\"\"),\"Information is missing\",\"OK\")","v":"Information is missing"},{"$f":"Ctrl!E4&Ctrl!H4","v":""}]
["Number of words Question 1 (tab 6)",{"$f":"IF('6. Question 1'!A4<>\"\",(LEN('6. Question 1'!A4)-LEN(SUBSTITUTE('6. Question 1'!A4,\" \",\"\"))+1),0)","v":0}]
["Number of words Question 2 (tab 7)",{"$f":"IF('7. Question 2'!A4<>\"\",(LEN('7. Question 2'!A4)-LEN(SUBSTITUTE('7. Question 2'!A4,\" \",\"\"))+1),0)","v":0}]
["Number of words Question 3 (tab 8)",{"$f":"IF('8. Question 3'!A3<>\"\",(LEN('8. Question 3'!A3)-LEN(SUBSTITUTE('8. Question 3'!A3,\" \",\"\"))+1),0)","v":0}]
["Statistics (tab 9)",{"$f":"IF(OR('9. Statistics'!A4=\"\",'9. Statistics'!A6=\"\",'9. Statistics'!A8=\"\"),\"Information is missing\",\"OK\")","v":"Information is missing"}]
["Universality Fund (tab 10)",{"$f":"IF(OR('10. Universality Fund'!A4=\"\",'10. Universality Fund'!A7=\"\",'10. Universality Fund'!A10=\"\"),\"Not applied\",\"Application done\")","v":"Not applied"}]

{"sheet":"2. University","index":1,"n_rows":14,"n_cols":2,"rows_kept":14}
["Information on the team"]
["The university"]
["Country"]
["City"]
["Name of the university"]
["The person in charge of the team"]
["Name"]
["Function (Professor, Dean…)"]
["E-mail address"]
["Phone number "]
["Selection of the edition"]
["Attending the 35th edition (Albania) is...","Possible (scroll if needed)"]
["Attending the 36th edition (Indonesia) is...","Possible (scroll if needed)"]
["Preference (if any)","No preference (scroll if needed)"]

{"sheet":"3. Participant 1","index":2,"n_rows":10,"n_cols":1,"rows_kept":10}
["Participant 1"]
["First name"]
["Usual first name (if applicable)"]
["Family name"]
["Gender"]
["Date of birth"]
["Nationality"]
["Second nationality (if any)"]
["Email"]
["Phone number"]

{"sheet":"4. Participant 2","index":3,"n_rows":10,"n_cols":1,"rows_kept":10}
["Participant 2"]
["First name"]
["Usual first name (if applicable)"]
["Family name"]
["Gender"]
["Date of birth"]
["Nationality"]
["Second nationality (if any)"]
["Email"]
["Phone number"]

{"sheet":"5. Participant 3","index":4,"n_rows":10,"n_cols":1,"rows_kept":10}
["Participant 3"]
["First name"]
["Usual first name (if applicable)"]
["Family name"]
["Gender"]
["Date of birth"]
["Nationality"]
["Second nationality (if any)"]
["Email"]
["Phone number"]

{"sheet":"6. Question 1","index":5,"n_rows":3,"n_cols":1,"rows_kept":3}
["Question 1"]
["Be careful not to exceed the maximum number of words and not to indicate anything (name of the University, names of the candidates...) that would make it possible to identify the answers to questions 1 and 2: they are evaluated anonymously."]
["What is the threshold for a group to constitute an \"armed group\", and thus a party to the conflict, under international humanitarian law? Can any structured group with a leader, such as a clan or a family, controlling a territory such as a village, be an armed group party to an armed conflict under international humanitarian law? (1000 words maximum)"]

{"sheet":"7. Question 2","index":6,"n_rows":3,"n_cols":1,"rows_kept":3}
["Question 2"]
["Be careful not to exceed the maximum number of words and not to indicate anything (name of the University, names of the candidates...) that would make it possible to identify the answers to questions 1 and 2: they are evaluated anonymously."]
["You are Legal Advisor to the Armed Forces of Bladuria. Colonel Jeronimar VIDOC asks you to write a document of 1000 words maximum to explain clearly and simply to non-commissioned soldiers who will go on operations why there is a right to kill under international humanitarian law. Write this document in the field below."]

{"sheet":"8. Question 3","index":7,"n_rows":2,"n_cols":1,"rows_kept":2}
["Question 3"]
["Why should your team be selected to participate in the 2021 Jean-Pictet Competition? (1000 words maximum)"]

{"sheet":"9. Statistics","index":8,"n_rows":7,"n_cols":1,"rows_kept":7}
["Statistics"]
["This section measures the support provided to the teams by their institution. The answers are not taken into account in the selection of teams; however, they are very valuable for the Committee for the Jean-Pictet Competition Committee in order to analyze the impact of the Competition and the resources to be provided to the teams."]
["1. If your team is selected, who will finance your registration fees? "]
[]
["2. If your team is selected, who will finance your travel expenses?"]
[]
["3. What are the means at your disposal to help prepare the team, such as the assistance of a teacher, a former participant, etc.? "]

{"sheet":"10. Universality Fund","index":9,"n_rows":9,"n_cols":1,"rows_kept":9}
["Request for support from the Universality Fund"]
["This part must be completed ONLY if you wish to obtain support from the Universality Fund and you meet the criteria set out in the Regulations of the Competition. No further requests will be considered. "]
["1. Reason for your request"]
[]
["2. Details of your budget "]
["(Please detail your budget as much as possible, referring to the definition of eligible expenses under the Regulations. We remind you that the costs of full board accommodation - from the first day of the Competition in the evening until last day in the morning - are covered by the organization)."]
[]
["3. Identified sources of funding "]
["Please include as many details as possible, including the amounts you have obtained or think you will be able to obtain)."]

{"sheet":"Ctrl","index":10,"n_rows":27,"n_cols":8,"rows_kept":27,"hidden":true}
[null,"Month birth","DOB","Age","Msg Age","Email includes @","Email includes .","Msg Email"]
["Participant 1",{"$f":"IF('3. Participant 1'!C6=\"January\",1,\"\")&IF('3. Participant 1'!C6=\"February\",2,\"\")&IF('3. Participant 1'!C6=\"March\",3,\"\")&IF('3. Participant 1'!C6=\"April\",4,\"\")&IF('3. Participant 1'!C6=\"May\",5,\"\")&IF('3. Participant 1'!C6=\"June\",6,\"\")&IF('3. Participant 1'!C6=\"July\",7,\"\")&IF('3. Participant 1'!C6=\"August\",8,\"\")&IF('3. Participant 1'!C6=\"September\",9,\"\")&IF('3. Participant 1'!C6=\"October\",10,\"\")&IF('3. Participant 1'!C6=\"November\",11,\"\")&IF('3. Participant 1'!C6=\"December\",12,\"\")","v":""},{"$f":"DATE('3. Participant 1'!D6,B2,'3. Participant 1'!B6)","v":{"$error":"#VALUE!"}},{"$f":"DATEDIF(C2,TODAY(),\"y\")","v":{"$error":"#VALUE!"}},{"$f":"IF(ISERROR(D2),\"\",IF(D2<18,\"Participant 1 seems to be under 18. Please check the date of birth. \",\"\")&IF(D2>30,\"As Participant 1 seems to be above 30, a derogation to the Regulations is needed. \",\"\"))","v":""},{"$f":"IF('3. Participant 1'!B9=\"\",\"OK\",IF(SEARCH(\"@\",'3. Participant 1'!B9)>0,\"OK\",\"Pb\"))","v":"OK"},{"$f":"IF('3. Participant 1'!B9=\"\",\"OK\",IF(SEARCH(\".\",'3. Participant 1'!B9)>0,\"OK\",\"Pb\"))","v":"OK"},{"$f":"IF(OR(ISERROR(F2),ISERROR(G2)),\"The format of the email address for Participant 1 seems wrong.\",\"\")","v":""}]
["Participant 2",{"$f":"IF('4. Participant 2'!C6=\"January\",1,\"\")&IF('4. Participant 2'!C6=\"February\",2,\"\")&IF('4. Participant 2'!C6=\"March\",3,\"\")&IF('4. Participant 2'!C6=\"April\",4,\"\")&IF('4. Participant 2'!C6=\"May\",5,\"\")&IF('4. Participant 2'!C6=\"June\",6,\"\")&IF('4. Participant 2'!C6=\"July\",7,\"\")&IF('4. Participant 2'!C6=\"August\",8,\"\")&IF('4. Participant 2'!C6=\"September\",9,\"\")&IF('4. Participant 2'!C6=\"October\",10,\"\")&IF('4. Participant 2'!C6=\"November\",11,\"\")&IF('4. Participant 2'!C6=\"December\",12,\"\")","v":""},{"$f":"DATE('4. Participant 2'!D6,B3,'4. Participant 2'!B6)","v":{"$error":"#VALUE!"}},{"$f":"DATEDIF(C3,TODAY(),\"y\")","v":{"$error":"#VALUE!"}},{"$f":"IF(ISERROR(D3),\"\",IF(D3<18,\"Participant 2 seems to be under 18. Please check the date of birth. \",\"\")&IF(D3>30,\"As Participant 2 seems to be above 30, a derogation to the Regulations is needed. \",\"\"))","v":""},{"$f":"IF('4. Participant 2'!B9=\"\",\"OK\",IF(SEARCH(\"@\",'4. Participant 2'!B9)>0,\"OK\",\"Pb\"))","v":"OK"},{"$f":"IF('4. Participant 2'!B9=\"\",\"OK\",IF(SEARCH(\".\",'4. Participant 2'!B9)>0,\"OK\",\"Pb\"))","v":"OK"},{"$f":"IF(OR(ISERROR(F3),ISERROR(G3)),\"The format of the email address for Participant 2 seems wrong.\",\"\")","v":""}]
["Participant 3",{"$f":"IF('5. Participant 3'!C6=\"January\",1,\"\")&IF('5. Participant 3'!C6=\"February\",2,\"\")&IF('5. Participant 3'!C6=\"March\",3,\"\")&IF('5. Participant 3'!C6=\"April\",4,\"\")&IF('5. Participant 3'!C6=\"May\",5,\"\")&IF('5. Participant 3'!C6=\"June\",6,\"\")&IF('5. Participant 3'!C6=\"July\",7,\"\")&IF('5. Participant 3'!C6=\"August\",8,\"\")&IF('5. Participant 3'!C6=\"September\",9,\"\")&IF('5. Participant 3'!C6=\"October\",10,\"\")&IF('5. Participant 3'!C6=\"November\",11,\"\")&IF('5. Participant 3'!C6=\"December\",12,\"\")","v":""},{"$f":"DATE('5. Participant 3'!D6,B4,'5. Participant 3'!B6)","v":{"$error":"#VALUE!"}},{"$f":"DATEDIF(C4,TODAY(),\"y\")","v":{"$error":"#VALUE!"}},{"$f":"IF(ISERROR(D4),\"\",IF(D4<18,\"Participant 3 seems to be under 18. Please check the date of birth. \",\"\")&IF(D4>30,\"As Participant 3 seems to be above 30, a derogation to the Regulations is needed. \",\"\"))","v":""},{"$f":"IF('5. Participant 3'!B9=\"\",\"OK\",IF(SEARCH(\"@\",'5. Participant 3'!B9)>0,\"OK\",\"Pb\"))","v":"OK"},{"$f":"IF('5. Participant 3'!B9=\"\",\"OK\",IF(SEARCH(\".\",'5. Participant 3'!B9)>0,\"OK\",\"Pb\"))","v":"OK"},{"$f":"IF(OR(ISERROR(F4),ISERROR(G4)),\"The format of the email address for Participant 3 seems wrong.\",\"\")","v":""}]
["University",{"$nulls":4},{"$f":"IF('2. University'!B9=\"\",\"OK\",IF(SEARCH(\"@\",'2. University'!B9)>0,\"OK\",\"Pb\"))","v":"OK"},{"$f":"IF('2. University'!B9=\"\",\"OK\",IF(SEARCH(\".\",'2. University'!B9)>0,\"OK\",\"Pb\"))","v":"OK"},{"$f":"IF(OR(ISERROR(F5),ISERROR(G5)),\"The format of the email address for the University representative seems wrong.\",\"\")","v":""}]
[]
[]
[]
["Choice of session"]
["35th","36th","Preference","Message","Choice"]
[{"$nulls":3},"You must select at least one edition.",{"$f":"IF(OR('2. University'!B$12=A11,'2. University'!B$13=B11),D11,\"\")","v":""}]
[{"$f":"Liste!$E$3","v":"Impossible (scroll if needed)"},{"$f":"Liste!$E$3","v":"Impossible (scroll if needed)"},null,"You must select at least one edition.",{"$f":"IF(AND('2. University'!B$12=A12,'2. University'!B$13=B12,'2. University'!B$14=C12),D12,\"\")","v":""}]
[{"$f":"Liste!$E$3","v":"Impossible (scroll if needed)"},{"$f":"Liste!$E$3","v":"Impossible (scroll if needed)"},{"$f":"Liste!$F$3","v":"35th edition (Albania)"},"You must select at least one edition.",{"$f":"IF(AND('2. University'!B$12=A13,'2. University'!B$13=B13,'2. University'!B$14=C13),D13,\"\")","v":""}]
[{"$f":"Liste!$E$3","v":"Impossible (scroll if needed)"},{"$f":"Liste!$E$3","v":"Impossible (scroll if needed)"},{"$f":"Liste!$F$4","v":"36th edition (Indonesia)"},"You must select at least one edition.",{"$f":"IF(AND('2. University'!B$12=A14,'2. University'!B$13=B14,'2. University'!B$14=C14),D14,\"\")","v":""}]
[{"$f":"Liste!$E$3","v":"Impossible (scroll if needed)"},{"$f":"Liste!$E$3","v":"Impossible (scroll if needed)"},{"$f":"Liste!$F$2","v":"No preference (scroll if needed)"},"You must select at least one edition.",{"$f":"IF(AND('2. University'!B$12=A15,'2. University'!B$13=B15,'2. University'!B$14=C15),D15,\"\")","v":""}]
[{"$f":"Liste!$E$2","v":"Possible (scroll if needed)"},{"$f":"Liste!$E$3","v":"Impossible (scroll if needed)"},null,"35th edition (Albania)",{"$f":"IF(AND('2. University'!B$12=A16,'2. University'!B$13=B16,'2. University'!B$14=C16),D16,\"\")","v":""}]
[{"$f":"Liste!$E$2","v":"Possible (scroll if needed)"},{"$f":"Liste!$E$3","v":"Impossible (scroll if needed)"},{"$f":"Liste!$F$3","v":"35th edition (Albania)"},"35th edition (Albania)",{"$f":"IF(AND('2. University'!B$12=A17,'2. University'!B$13=B17,'2. University'!B$14=C17),D17,\"\")","v":""}]
[{"$f":"Liste!$E$2","v":"Possible (scroll if needed)"},{"$f":"Liste!$E$3","v":"Impossible (scroll if needed)"},{"$f":"Liste!$F$4","v":"36th edition (Indonesia)"},"Please review your choice in tab 2.",{"$f":"IF(AND('2. University'!B$12=A18,'2. University'!B$13=B18,'2. University'!B$14=C18),D18,\"\")","v":""}]
[{"$f":"Liste!$E$2","v":"Possible (scroll if needed)"},{"$f":"Liste!$E$3","v":"Impossible (scroll if needed)"},{"$f":"Liste!$F$2","v":"No preference (scroll if needed)"},"35th edition (Albania)",{"$f":"IF(AND('2. University'!B$12=A19,'2. University'!B$13=B19,'2. University'!B$14=C19),D19,\"\")","v":""}]
[{"$f":"Liste!$E$3","v":"Impossible (scroll if needed)"},{"$f":"Liste!$E$2","v":"Possible (scroll if needed)"},null,"36th edition (Indonesia)",{"$f":"IF(AND('2. University'!B$12=A20,'2. University'!B$13=B20,'2. University'!B$14=C20),D20,\"\")","v":""}]
[{"$f":"Liste!$E$3","v":"Impossible (scroll if needed)"},{"$f":"Liste!$E$2","v":"Possible (scroll if needed)"},{"$f":"Liste!$F$3","v":"35th edition (Albania)"},"Please review your choice in tab 2.",{"$f":"IF(AND('2. University'!B$12=A21,'2. University'!B$13=B21,'2. University'!B$14=C21),D21,\"\")","v":""}]
[{"$f":"Liste!$E$3","v":"Impossible (scroll if needed)"},{"$f":"Liste!$E$2","v":"Possible (scroll if needed)"},{"$f":"Liste!$F$4","v":"36th edition (Indonesia)"},"36th edition (Indonesia)",{"$f":"IF(AND('2. University'!B$12=A22,'2. University'!B$13=B22,'2. University'!B$14=C22),D22,\"\")","v":""}]
[{"$f":"Liste!$E$3","v":"Impossible (scroll if needed)"},{"$f":"Liste!$E$2","v":"Possible (scroll if needed)"},{"$f":"Liste!$F$2","v":"No preference (scroll if needed)"},"36th edition (Indonesia)",{"$f":"IF(AND('2. University'!B$12=A23,'2. University'!B$13=B23,'2. University'!B$14=C23),D23,\"\")","v":""}]
[{"$f":"Liste!$E$2","v":"Possible (scroll if needed)"},{"$f":"Liste!$E$2","v":"Possible (scroll if needed)"},null,"35th edition (Albania) or 36th edition (Indonesia), no preference",{"$f":"IF(AND('2. University'!B$12=A24,'2. University'!B$13=B24,'2. University'!B$14=C24),D24,\"\")","v":""}]
[{"$f":"Liste!$E$2","v":"Possible (scroll if needed)"},{"$f":"Liste!$E$2","v":"Possible (scroll if needed)"},{"$f":"Liste!$F$3","v":"35th edition (Albania)"},"Both editions are possible, preference for 35th (Albania)",{"$f":"IF(AND('2. University'!B$12=A25,'2. University'!B$13=B25,'2. University'!B$14=C25),D25,\"\")","v":""}]
[{"$f":"Liste!$E$2","v":"Possible (scroll if needed)"},{"$f":"Liste!$E$2","v":"Possible (scroll if needed)"},{"$f":"Liste!$F$4","v":"36th edition (Indonesia)"},"Both editions are possible, preference for 36th (Indonesia)",{"$f":"IF(AND('2. University'!B$12=A26,'2. University'!B$13=B26,'2. University'!B$14=C26),D26,\"\")","v":""}]
[{"$f":"Liste!$E$2","v":"Possible (scroll if needed)"},{"$f":"Liste!$E$2","v":"Possible (scroll if needed)"},{"$f":"Liste!$F$2","v":"No preference (scroll if needed)"},"35th edition (Albania) or 36th edition (Indonesia), no preference",{"$f":"IF(AND('2. University'!B$12=A27,'2. University'!B$13=B27,'2. University'!B$14=C27),D27,\"\")","v":"35th edition (Albania) or 36th edition (Indonesia), no preference"}]

{"sheet":"Liste","index":11,"n_rows":200,"n_cols":7,"rows_kept":200,"hidden":true}
[]
["Afghanistan",1,"January",1980,"Possible (scroll if needed)","No preference (scroll if needed)","Female"]
["Albania",2,"February",1981,"Impossible (scroll if needed)","35th edition (Albania)","Male"]
["Algeria",3,"March",1982,null,"36th edition (Indonesia)","Other"]
["Andorra",4,"April",1983]
["Angola",5,"May",1984]
["Antigua and Barbuda",6,"June",1985]
["Argentina",7,"July",1986]
["Armenia",8,"August",1987]
["Australia",9,"September",1988]
["Austria",10,"October",1989]
["Azerbaijan",11,"November",1990]
["Bahamas",12,"December",1991]
["Bahrain",13,null,1992]
["Bangladesh",14,null,1993]
["Barbados",15,null,1994]
["Belarus",16,null,1995]
["Belgium",17,null,1996]
["Belize",18,null,1997]
["Benin",19,null,1998]
["Bhutan",20,null,1999]
["Bolivia (Plurinational State of)",21,null,2000]
["Bosnia and Herzegovina",22,null,2001]
["Botswana",23,null,2002]
["Brazil",24,null,2003]
["Brunei Darussalam",25,null,2004]
["Bulgaria",26]
["Burkina Faso",27]
["Burundi",28]
["Cabo Verde",29]
["Cambodia",30]
["Cameroon",31]
["Canada"]
["Central African Republic"]
["Chad"]
["Chile"]
["China"]
["Colombia"]
["Comoros"]
["Congo"]
["Cook Islands"]
["Costa Rica"]
["Côte D'Ivoire"]
["Croatia"]
["Cuba"]
["Cyprus"]
["Czech Republic"]
["Democratic People's Republic of Korea"]
["Democratic Republic of the Congo"]
["Denmark"]
["Djibouti"]
["Dominica"]
["Dominican Republic"]
["Ecuador"]
["Egypt"]
["El Salvador"]
["Equatorial Guinea"]
["Eritrea"]
["Estonia"]
["Eswatini"]
["Ethiopia"]
["Fiji"]
["Finland"]
["France"]
["Gabon"]
["Gambia (Republic of The)"]
["Georgia"]
["Germany"]
["Ghana"]
["Greece"]
["Grenada"]
["Guatemala"]
["Guinea"]
["Guinea Bissau"]
["Guyana"]
["Haiti"]
["Holy See"]
["Honduras"]
["Hungary"]
["Iceland"]
["India"]
["Indonesia"]
["Iran (Islamic Republic of)"]
["Iraq"]
["Ireland"]
["Israel"]
["Italy"]
["Jamaica"]
["Japan"]
["Jordan"]
["Kazakhstan"]
["Kenya"]
["Kiribati"]
["Kosovo"]
["Kuwait"]
["Kyrgyzstan"]
["Lao People’s Democratic Republic"]
["Latvia"]
["Lebanon"]
["Lesotho"]
["Liberia"]
["Libya"]
["Liechtenstein"]
["Lithuania"]
["Luxembourg"]
["Madagascar"]
["Malawi"]
["Malaysia"]
["Maldives"]
["Mali"]
["Malta"]
["Marshall Islands"]
["Mauritania"]
["Mauritius"]
["Mexico"]
["Micronesia (Federated States of)"]
["Monaco"]
["Mongolia"]
["Montenegro"]
["Morocco"]
["Mozambique"]
["Myanmar"]
["Namibia"]
["Nauru"]
["Nepal"]
["Netherlands"]
["New Zealand"]
["Nicaragua"]
["Niger"]
["Nigeria"]
["Niue"]
["North Macedonia"]
["Norway"]
["Oman"]
["Pakistan"]
["Palau"]
["Palestine"]
["Panama"]
["Papua New Guinea"]
["Paraguay"]
["Peru"]
["Philippines"]
["Poland"]
["Portugal"]
["Qatar"]
["Republic of Korea"]
["Republic of Moldova"]
["Romania"]
["Russian Federation"]
["Rwanda"]
["Saint Kitts and Nevis"]
["Saint Lucia"]
["Saint Vincent and the Grenadines"]
["Samoa"]
["San Marino"]
["Sao Tome and Principe"]
["Saudi Arabia"]
["Senegal"]
["Serbia"]
["Seychelles"]
["Sierra Leone"]
["Singapore"]
["Slovakia"]
["Slovenia"]
["Solomon Islands"]
["Somalia"]
["South Africa"]
["South Sudan"]
["Spain"]
["Sri Lanka"]
["Sudan"]
["Suriname"]
["Sweden"]
["Switzerland"]
["Syrian Arab Republic"]
["Taiwan"]
["Tajikistan"]
["Thailand"]
["Timor-Leste"]
["Togo"]
["Tonga"]
["Trinidad and Tobago"]
["Tunisia"]
["Turkey"]
["Turkmenistan"]
["Tuvalu"]
["Uganda"]
["Ukraine"]
["United Arab Emirates"]
["United Kingdom of Great Britain and Northern Ireland"]
["United Republic of Tanzania"]
["United States of America"]
["Uruguay"]
["Uzbekistan"]
["Vanuatu"]
["Venezuela, Bolivarian Republic of"]
["Viet Nam"]
["Yemen"]
["Zambia"]
["Zimbabwe"]